bitfinex/quotes_BTCUSD_20230831
["timestamp","ask_amount","ask_price","bid_price","bid_amount"]
[1693508912627,0.072,26328.0,26327.0,2.55152033]
[1693508919560,0.072,26328.0,26327.0,3.08712033]
[1693508920295,0.047461,26330.0,26327.0,3.08512033]
[1693508920681,0.047461,26330.0,26329.0,2.394456]
[1693508921414,0.050461,26330.0,26329.0,2.394456]
[1693508921614,0.048461,26330.0,26329.0,2.394456]
[1693508922060,0.050461,26330.0,26329.0,2.405456]
[1693508922831,0.049461,26330.0,26329.0,2.405456]
[1693508923032,0.050461,26330.0,26329.0,2.77974585]
[1693508923898,0.65393759,26330.0,26329.0,1.274028]
[1693508924122,0.41814185,26330.0,26329.0,0.019]
[1693508924542,1.55752585,26330.0,26329.0,0.019]
[1693508924747,2.31362111,26330.0,26329.0,0.019]
[1693508924957,2.77223061,26330.0,26329.0,0.019]
[1693508925361,2.77223061,26330.0,26329.0,0.0141]
[1693508925566,0.04,26329.0,26326.0,0.1156]
[1693508925767,1.65355411,26328.0,26326.0,0.1156]
[1693508925970,1.50715085,26328.0,26326.0,0.1156]
[1693508926183,1.65865085,26328.0,26327.0,0.03229491]
[1693508926384,1.80526459,26328.0,26327.0,0.03229491]
[1693508926537,2.15570169,26328.0,26327.0,0.03229491]
[1693508926960,2.19170169,26328.0,26327.0,0.03229491]
[1693508927360,2.15570169,26328.0,26327.0,0.03229491]
[1693508927592,2.22770169,26328.0,26327.0,0.03329491]
[1693508929127,2.79743669,26328.0,26327.0,0.03329491]
[1693508929330,2.22770169,26328.0,26327.0,0.03329491]
[1693508929886,2.52401249,26328.0,26327.0,0.03329491]
[1693508930084,2.22770169,26328.0,26327.0,0.03329491]
[1693508930860,2.26770169,26328.0,26327.0,0.03329491]
[1693508932065,2.56794023,26328.0,26327.0,0.03329491]
[1693508932277,2.26770169,26328.0,26327.0,0.03329491]
[1693508933033,2.54240255,26328.0,26327.0,0.03329491]
[1693508933872,2.26770169,26328.0,26327.0,0.03329491]
[1693508934901,2.35852215,26328.0,26327.0,0.03329491]
[1693508935759,2.67623349,26328.0,26327.0,0.03329491]
[1693508935964,2.35852215,26328.0,26327.0,0.03329491]
[1693508936607,2.33852215,26328.0,26327.0,0.03329491]
[1693508938733,2.57804074,26328.0,26327.0,0.03329491]
[1693508939558,2.33852215,26328.0,26327.0,0.03329491]
[1693508939753,2.57721291,26328.0,26327.0,0.03329491]
[1693508940928,2.48639245,26328.0,26327.0,0.03329491]
[1693508941227,1.91665745,26328.0,26327.0,0.03329491]
[1693508942264,1.56622035,26328.0,26327.0,0.03329491]
[1693508943434,0.60629459,26328.0,26327.0,0.03329491]
[1693508943638,0.60629459,26328.0,26327.0,1.28840891]
[1693508947461,0.58629459,26328.0,26327.0,1.28840891]
[1693508947866,0.58629459,26328.0,26327.0,1.85816591]
[1693508950085,0.43968085,26328.0,26327.0,1.85816591]
[1693508950499,0.072,26328.0,26327.0,2.1009618]
[1693508950699,0.072,26328.0,26327.0,1.85816591]
[1693508951269,0.036,26328.0,26327.0,1.85716591]
[1693508951474,0.047461,26330.0,26329.0,2.278856]
[1693508951670,0.047461,26330.0,26329.0,2.394456]
[1693508952076,0.047461,26330.0,26329.0,2.42677842]
[1693508954077,0.067461,26330.0,26329.0,2.42777842]
[1693508954254,0.067461,26330.0,26329.0,2.42877842]
[1693508954255,0.090461,26330.0,26329.0,2.42877842]
[1693508960764,0.280461,26330.0,26329.0,2.42877842]
[1693508961479,0.5977764,26330.0,26329.0,1.85906442]
[1693508961908,0.96545725,26330.0,26329.0,1.28935042]
[1693508962853,0.64814185,26330.0,26329.0,1.85906442]
[1693508972275,0.64814185,26330.0,26329.0,1.85936006]
[1693508973914,0.64814185,26330.0,26329.0,1.28964606]
[1693508978531,0.64814185,26330.0,26329.0,1.85936006]
[1693508980100,0.280461,26330.0,26329.0,1.85936006]
[1693508985806,0.42684075,26330.0,26329.0,1.85936006]
[1693508986631,0.280461,26330.0,26329.0,1.85936006]
[1693508987018,0.280461,26330.0,26329.0,2.18442557]
[1693508987404,0.280461,26330.0,26329.0,1.85936006]
[1693508988563,0.280461,26330.0,26329.0,1.99496006]
[1693508989543,0.257461,26330.0,26329.0,1.99396006]
[1693508989871,0.261461,26330.0,26329.0,1.99496006]
[1693508990020,0.269461,26330.0,26329.0,1.99596006]
[1693508990220,0.245461,26330.0,26329.0,1.99396006]
[1693508992315,0.255461,26330.0,26329.0,1.99596006]
[1693508993532,0.255461,26330.0,26329.0,2.4637491]
[1693508993804,0.255461,26330.0,26329.0,2.7637491]
[1693508994135,0.255461,26330.0,26329.0,3.85891121]
[1693508994345,0.255461,26330.0,26329.0,3.92323121]
[1693508994540,0.255461,26330.0,26329.0,2.7637491]
[1693508994746,0.255461,26330.0,26329.0,2.8278291]
[1693508994949,0.255461,26330.0,26329.0,2.7637491]
[1693508995810,0.255461,26330.0,26329.0,3.4637491]
[1693508996761,0.255461,26330.0,26329.0,4.55889545]
[1693508997844,0.255461,26330.0,26329.0,4.58955479]
[1693508998377,0.255461,26330.0,26329.0,3.88955479]
[1693509000377,0.255461,26330.0,26329.0,3.80955479]
[1693509000715,1.2453503,26335.0,26330.0,0.1]
[1693509000926,0.0908503,26335.0,26334.0,0.2312]
[1693509001134,0.0908503,26335.0,26334.0,1.37041]
[1693509001344,0.39342575,26336.0,26334.0,1.40265141]
[1693509001545,0.39342575,26336.0,26335.0,0.1156]
[1693509001745,0.39342575,26336.0,26335.0,1.824352]
[1693509001746,0.53952045,26336.0,26335.0,1.824352]
[1693509002325,0.403245,26336.0,26335.0,2.06707184]
[1693509002696,0.403245,26336.0,26335.0,2.09928242]
[1693509002697,0.2571503,26336.0,26335.0,2.09928242]
[1693509002890,0.3291503,26336.0,26335.0,2.10228242]
[1693509003450,0.4752163,26336.0,26335.0,2.10228242]
[1693509003633,0.2571503,26336.0,26335.0,2.09928242]
[1693509004645,0.2571503,26336.0,26335.0,1.85656258]
[1693509005072,0.3291503,26336.0,26335.0,1.86056258]
[1693509005279,0.3291503,26336.0,26335.0,1.86085543]
[1693509005621,0.2023,26336.0,26335.0,1.85885543]
[1693509005841,0.2781503,26336.0,26335.0,1.85985543]
[1693509006040,0.2971503,26336.0,26335.0,1.86185543]
[1693509006382,0.2967106,26336.0,26335.0,1.86185543]
[1693509007374,0.2058603,26336.0,26335.0,1.86185543]
[1693509008342,0.2967106,26336.0,26335.0,1.86185543]
[1693509009182,0.2967106,26336.0,26335.0,1.29227143]
[1693509009563,0.2058603,26336.0,26335.0,1.29227143]
[1693509009986,0.89316367,26336.0,26335.0,1.29227143]
[1693509011553,0.89316367,26336.0,26335.0,0.15310343]
[1693509012293,0.98401397,26336.0,26335.0,0.15310343]
[1693509013073,0.66439145,26336.0,26335.0,0.15310343]
[1693509013555,0.66439145,26336.0,26335.0,0.72268743]
[1693509013785,0.57354115,26336.0,26335.0,0.72268743]
[1693509014391,0.57354115,26336.0,26335.0,1.29227143]
[1693509014953,0.57354115,26336.0,26335.0,1.86185543]
[1693509015163,0.2058603,26336.0,26335.0,2.10499967]
[1693509015361,0.2058603,26336.0,26335.0,1.86185543]
[1693509018099,0.44282514,26336.0,26335.0,1.86185543]
[1693509019094,0.73220252,26336.0,26335.0,1.86185543]
[1693509020218,0.64135222,26336.0,26335.0,1.86185543]
[1693509020423,0.49523768,26336.0,26335.0,1.86185543]
[1693509020666,0.64140098,26336.0,26335.0,1.86185543]
[1693509020867,0.49523768,26336.0,26335.0,1.86185543]
[1693509021081,0.64140045,26336.0,26335.0,1.86185543]
[1693509021427,0.64140053,26336.0,26335.0,1.29227143]
[1693509021635,0.35202315,26336.0,26335.0,1.29227143]
[1693509021916,0.719704,26336.0,26335.0,1.29227143]
[1693509025919,0.7188424,26336.0,26335.0,1.29227143]
[1693509026060,0.8096927,26336.0,26335.0,1.29227143]
[1693509026484,0.7188424,26336.0,26335.0,1.29227143]
[1693509026886,0.8096927,26336.0,26335.0,1.29227143]
[1693509027085,0.7188424,26336.0,26335.0,1.29227143]
[1693509027530,0.8096927,26336.0,26335.0,1.29227143]
[1693509030508,0.8096927,26336.0,26335.0,1.86185543]
[1693509031513,0.8096927,26336.0,26335.0,2.10499987]
[1693509031891,0.94596815,26336.0,26335.0,1.87167372]
[1693509033067,0.8096927,26336.0,26335.0,1.87167372]
[1693509033270,0.94596815,26336.0,26335.0,1.87167372]
[1693509033495,0.4132886,26336.0,26335.0,1.87167372]
[1693509033694,0.1817006,26337.0,26335.0,2.42727372]
[1693509033695,0.09097313,26337.0,26335.0,2.42727372]
[1693509033900,0.22712576,26340.0,26337.0,0.02]
[1693509034098,0.1310359,26339.0,26338.0,2.438076]
[1693509034304,0.0202,26342.0,26338.0,3.42262762]
[1693509034305,0.24732576,26342.0,26338.0,3.42262762]
[1693509034594,0.13104094,26341.0,26339.0,0.3]
[1693509034794,0.24732576,26342.0,26340.0,2.71192413]
[1693509034795,0.0202,26342.0,26340.0,2.71192413]
[1693509035154,0.0202,26342.0,26341.0,0.2312]
[1693509035366,0.13744207,26342.0,26341.0,1.939562]
[1693509035722,0.0202,26342.0,26341.0,1.939562]
[1693509036133,0.9974,26344.0,26341.0,1.939562]
[1693509036333,0.9974,26344.0,26343.0,0.2312]
[1693509036548,0.11710864,26344.0,26343.0,2.508844]
[1693509037081,0.11704694,26344.0,26343.0,2.508844]
[1693509037696,1.0,26345.0,26343.0,2.508844]
[1693509037871,0.002,26344.0,26343.0,2.300644]
[1693509038078,0.004,26344.0,26343.0,2.75296969]
[1693509038276,0.002,26344.0,26343.0,2.74096969]
[1693509038474,1.0,26345.0,26343.0,2.71796969]
[1693509038675,0.003,26344.0,26343.0,2.51276969]
[1693509038910,0.003,26344.0,26343.0,2.74396969]
[1693509039299,0.003,26344.0,26343.0,2.71796969]
[1693509039504,1.0,26345.0,26343.0,2.71796969]
[1693509039706,1.002,26345.0,26344.0,0.2312]
[1693509039882,1.003,26345.0,26344.0,1.369978]
[1693509040461,1.002,26345.0,26344.0,1.369978]
[1693509040661,1.61377559,26345.0,26344.0,0.2312]
[1693509040984,1.61277559,26345.0,26344.0,0.2412]
[1693509041161,1.72980274,26345.0,26344.0,0.2412]
[1693509041777,1.61477559,26345.0,26344.0,0.2532]
[1693509042227,1.61477559,26345.0,26344.0,0.25358127]
[1693509044611,1.61477559,26345.0,26344.0,0.02238127]
[1693509044817,1.61477559,26345.0,26344.0,0.13778127]
[1693509046541,1.61477559,26345.0,26344.0,0.02238127]
[1693509046542,1.94004885,26345.0,26344.0,0.02238127]
[1693509046746,2.79202721,26345.0,26344.0,0.02238127]
[1693509046948,2.6665706,26345.0,26344.0,0.02238127]
[1693509047149,2.961828,26345.0,26344.0,0.02238127]
[1693509047353,2.961828,26345.0,26344.0,0.022]
[1693509047553,2.960828,26345.0,26344.0,0.012]
[1693509047813,3.04735964,26345.0,26344.0,0.0427751]
[1693509048039,3.92959141,26345.0,26344.0,0.005]
[1693509048234,3.92959141,26345.0,26344.0,0.002]
[1693509048235,3.61672764,26345.0,26344.0,0.002]
[1693509048434,3.61672764,26345.0,26344.0,0.0407751]
[1693509048435,3.2329386,26345.0,26344.0,0.0407751]
[1693509048646,3.2689386,26345.0,26344.0,0.003]
[1693509048867,3.2329386,26345.0,26343.0,0.1154]
[1693509049075,3.2329386,26345.0,26338.0,0.77121274]
[1693509049076,3.60845518,26345.0,26344.0,0.0407751]
[1693509049277,4.20655865,26345.0,26344.0,0.003]
[1693509049481,4.32143623,26345.0,26344.0,0.003]
[1693509049683,3.39250719,26345.0,26344.0,0.007]
[1693509049886,3.52870813,26345.0,26344.0,0.007]
[1693509050090,3.43784803,26345.0,26344.0,0.007]
[1693509050294,3.64320233,26345.0,26344.0,0.003]
[1693509050496,3.68020233,26345.0,26344.0,0.05061712]
[1693509050702,3.68020233,26345.0,26344.0,0.006]
[1693509051120,3.68020233,26345.0,26344.0,0.05060323]
[1693509051736,3.58939829,26345.0,26344.0,0.05060323]
[1693509051968,3.95707914,26345.0,26344.0,0.05060323]
[1693509054547,4.04789185,26345.0,26344.0,0.05060323]
[1693509055382,2.21978785,26345.0,26344.0,0.05060323]
[1693509055587,2.08358691,26345.0,26344.0,0.05060323]
[1693509055790,1.80223261,26345.0,26344.0,0.73539223]
[1693509056006,1.80223261,26345.0,26344.0,1.30478123]
[1693509056007,1.7114199,26345.0,26344.0,1.30478123]
[1693509056211,1.5579199,26345.0,26344.0,1.30478123]
[1693509056412,1.5579199,26345.0,26344.0,1.87417023]
[1693509056413,1.44068085,26345.0,26344.0,1.87417023]
[1693509056619,1.073,26345.0,26344.0,2.23392625]
[1693509057561,1.073,26345.0,26344.0,2.68590925]
[1693509058572,1.073,26345.0,26344.0,2.68290925]
[1693509058573,1.037,26345.0,26344.0,2.68290925]
[1693509058769,1.001,26345.0,26344.0,2.69190925]
[1693509058993,1.0,26345.0,26344.0,2.68290925]
[1693509059201,1.037,26345.0,26344.0,2.68290925]
[1693509059543,1.004,26345.0,26344.0,2.71590925]
[1693509059949,1.007,26345.0,26344.0,2.75290925]
[1693509060304,1.02302401,26345.0,26344.0,2.74781518]
[1693509064791,1.02302401,26345.0,26344.0,2.50345916]
[1693509066668,1.02302401,26345.0,26344.0,2.38805916]
[1693509066866,1.39070486,26345.0,26344.0,0.79729816]
[1693509068768,1.6678702,26345.0,26344.0,0.22790916]
[1693509069788,1.6608702,26345.0,26344.0,0.15490916]
[1693509069966,1.6608702,26345.0,26344.0,0.15890916]
[1693509069967,1.6918702,26345.0,26344.0,0.15890916]
[1693509070479,1.39870486,26345.0,26344.0,0.15690916]
[1693509070611,1.41470486,26345.0,26344.0,0.15890916]
[1693509073495,1.41470486,26345.0,26344.0,0.72829816]
[1693509078580,1.68298286,26345.0,26344.0,0.72829816]
[1693509078804,1.68298286,26345.0,26344.0,0.15890916]
[1693509079033,2.7005132,26345.0,26344.0,0.04350916]
[1693509079285,3.51513059,26345.0,26344.0,0.04350916]
[1693509079499,3.51513059,26345.0,26344.0,0.004]
[1693509079709,3.76751963,26345.0,26344.0,0.004]
[1693509079912,3.75151963,26345.0,26344.0,0.002]
[1693509080332,2.70765483,26345.0,26344.0,0.005]
[1693509080537,2.44199459,26345.0,26344.0,0.04943172]
[1693509080915,2.68654357,26345.0,26344.0,0.04943172]
[1693509081345,2.42699459,26345.0,26344.0,0.003]
[1693509081493,0.04,26343.0,26341.0,0.684853]
[1693509081697,0.36768085,26342.0,26341.0,0.684853]
[1693509082135,0.36768085,26342.0,26341.0,0.1154]
[1693509083163,0.36768085,26342.0,26341.0,0.1204]
[1693509084367,0.36768085,26342.0,26341.0,0.1154]
[1693509084787,0.43968085,26342.0,26341.0,0.1204]
[1693509088366,0.43968085,26342.0,26341.0,0.689854]
[1693509089865,0.43968085,26342.0,26341.0,1.259308]
[1693509091099,0.43968085,26342.0,26341.0,1.828762]
[1693509092457,0.43968085,26342.0,26341.0,1.87198263]
[1693509095206,0.43968085,26342.0,26341.0,1.30252863]
[1693509095409,0.72462867,26342.0,26341.0,0.16362063]
[1693509103030,0.72462867,26342.0,26341.0,0.04822063]
[1693509103711,1.29406067,26342.0,26341.0,0.04822063]
[1693509104013,1.86349267,26342.0,26341.0,0.04822063]
[1693509105312,1.29406067,26342.0,26341.0,0.04822063]
[1693509106156,1.4112558,26342.0,26341.0,0.04822063]
[1693509106367,0.55687598,26342.0,26341.0,1.87198263]
[1693509107087,0.55687598,26342.0,26341.0,1.30252863]
[1693509107298,0.43968085,26342.0,26341.0,1.30252863]
[1693509108912,0.43968085,26342.0,26341.0,0.73307463]
[1693509109440,0.43968085,26342.0,26341.0,0.16362063]
[1693509109642,0.43968085,26342.0,26341.0,0.73307463]
[1693509109836,0.43968085,26342.0,26341.0,0.16362063]
[1693509110022,0.43968085,26342.0,26341.0,0.73307463]
[1693509110845,0.5568631,26342.0,26341.0,0.73307463]
[1693509111479,0.85625585,26342.0,26341.0,0.73307463]
[1693509111878,0.85625585,26342.0,26341.0,0.16362063]
[1693509112616,0.94720573,26342.0,26341.0,0.16362063]
[1693509116079,1.08363055,26342.0,26341.0,0.16362063]
[1693509116472,0.99268067,26342.0,26341.0,0.16362063]
[1693509116601,1.08365851,26342.0,26341.0,0.16362063]
[1693509116821,0.99268067,26342.0,26341.0,0.16362063]
[1693509119832,1.17458044,26342.0,26341.0,0.16362063]
[1693509121673,0.99268067,26342.0,26341.0,0.16362063]
[1693509122006,1.17458044,26342.0,26341.0,0.16362063]
[1693509123032,1.03815562,26342.0,26341.0,0.16362063]
[1693509124888,1.08363056,26342.0,26341.0,0.16362063]
[1693509126524,1.35366981,26342.0,26341.0,0.04822063]
[1693509126727,1.92310181,26342.0,26341.0,0.04822063]
[1693509127139,1.92310181,26342.0,26341.0,0.005]
[1693509127783,1.6957271,26342.0,26341.0,0.005]
[1693509127981,2.49287952,26342.0,26341.0,0.005]
[1693509128192,2.2651591,26342.0,26341.0,0.005]
[1693509128695,2.60704128,26342.0,26341.0,0.005]
[1693509129336,2.60704128,26342.0,26341.0,0.04819053]
[1693509129531,2.2651591,26342.0,26341.0,0.04819053]
[1693509129936,2.2651591,26342.0,26341.0,0.005]
[1693509130357,2.2651591,26342.0,26341.0,0.04819053]
[1693509137378,1.6957271,26342.0,26341.0,0.04819053]
[1693509138133,1.99399584,26342.0,26341.0,0.04819053]
[1693509138518,2.22154221,26342.0,26341.0,0.04819053]
[1693509138900,1.99399584,26342.0,26341.0,0.04819053]
[1693509139119,2.22153857,26342.0,26341.0,0.04819053]
[1693509139722,1.99399584,26342.0,26341.0,0.04819053]
[1693509139972,2.22153818,26342.0,26341.0,0.04819053]
[1693509140376,1.92326944,26342.0,26341.0,0.04819053]
[1693509140735,2.17759026,26342.0,26341.0,0.04819053]
[1693509141735,1.92326944,26342.0,26341.0,0.04819053]
[1693509142054,1.6957271,26342.0,26341.0,0.04819053]
[1693509148338,1.99570177,26342.0,26341.0,0.04819053]
[1693509148562,1.6957271,26342.0,26341.0,0.04819053]
[1693509152393,1.6957271,26342.0,26341.0,0.0484778]
[1693509152591,1.97056997,26342.0,26341.0,0.0484778]
[1693509154478,1.6957271,26342.0,26341.0,0.0484778]
[1693509155852,1.95693716,26342.0,26341.0,0.0484778]
[1693509156217,1.93674091,26342.0,26341.0,0.0484778]
[1693509156653,1.6957271,26342.0,26341.0,0.0484778]
[1693509156836,1.96318138,26342.0,26341.0,0.0484778]
[1693509167789,1.6957271,26342.0,26341.0,0.0484778]
[1693509167917,3.32916195,26342.0,26341.0,0.0484778]
[1693509168116,3.30480961,26342.0,26341.0,0.0484778]
[1693509168342,3.34120323,26342.0,26341.0,0.005]
[1693509168683,3.34750323,26342.0,26341.0,0.005]
[1693509168859,3.34750323,26342.0,26341.0,0.002]
[1693509168860,3.31108323,26342.0,26341.0,0.002]
[1693509169067,0.04,26339.0,26333.0,0.04902149]
[1693509169267,0.09108924,26335.0,26333.0,0.04902149]
[1693509169492,0.36768085,26334.0,26333.0,0.04902149]
[1693509169814,0.36768085,26334.0,26332.0,0.569646]
[1693509170388,0.36768085,26334.0,26333.0,0.00020309]
[1693509170798,0.41148676,26334.0,26333.0,0.00020309]
[1693509171002,0.41148676,26334.0,26333.0,0.00220309]
[1693509171203,0.36768085,26334.0,26333.0,0.00020309]
[1693509171502,0.37068085,26334.0,26333.0,0.00221249]
[1693509171862,0.37368085,26334.0,26333.0,0.00221249]
[1693509172291,0.37368085,26334.0,26333.0,0.00233568]
[1693509172487,0.37068085,26334.0,26333.0,0.00233568]
[1693509172695,0.37368085,26334.0,26333.0,0.00433568]
[1693509174388,0.37068085,26334.0,26333.0,0.11773568]
[1693509174575,0.37268085,26334.0,26333.0,0.11973568]
[1693509174771,0.36968085,26334.0,26333.0,0.11773568]
[1693509174976,0.37168085,26334.0,26333.0,0.11973568]
[1693509175497,0.36968085,26334.0,26333.0,0.11773568]
[1693509176189,0.37168085,26334.0,26333.0,0.11973568]
[1693509180239,0.37168085,26334.0,26333.0,0.00156388]
[1693509180240,0.61345652,26334.0,26333.0,0.00156388]
[1693509180443,3.37388918,26334.0,26333.0,0.00156388]
[1693509180737,3.53785109,26334.0,26333.0,0.00156388]
[1693509180919,3.42493046,26334.0,26333.0,0.00156388]
[1693509181120,0.04,26329.0,26325.0,0.1154]
[1693509181297,0.51475319,26328.0,26325.0,0.1154]
[1693509181653,0.26671054,26327.0,26325.0,0.1154]
[1693509181862,0.36768085,26326.0,26325.0,0.1154]
[1693509182470,0.36768085,26326.0,26325.0,0.15628543]
[1693509183519,2.64840919,26326.0,26325.0,0.04088543]
[1693509183728,3.5519333,26326.0,26325.0,0.04088543]
[1693509183920,0.04,26322.0,26317.0,0.020402]
[1693509184094,0.36768085,26319.0,26317.0,0.07039161]
[1693509184278,0.3722385,26318.0,26317.0,0.07039161]
[1693509184476,0.73991935,26318.0,26317.0,0.020402]
[1693509184698,0.36768085,26318.0,26317.0,0.020402]
[1693509185680,0.38768085,26318.0,26317.0,0.020402]
[1693509186798,0.40968085,26318.0,26317.0,0.020402]
[1693509186994,0.53830526,26318.0,26317.0,0.020402]
[1693509187197,0.40968085,26318.0,26317.0,0.020402]
[1693509191216,0.40968085,26318.0,26317.0,0.06094417]
[1693509197022,0.86807544,26318.0,26311.0,0.97749014]
[1693509197227,0.86807544,26318.0,26308.0,0.13580093]
[1693509197228,0.3987,26310.0,26308.0,0.13580093]
[1693509197452,0.4787,26307.0,26306.0,0.020402]
[1693509197780,3.53848967,26307.0,26306.0,0.013902]
[1693509197991,5.41450287,26307.0,26306.0,0.013902]
[1693509198198,5.46234487,26307.0,26306.0,0.013902]
[1693509198411,0.16,26301.0,26300.0,0.06949603]
[1693509198609,3.86837019,26301.0,26300.0,0.06949603]
[1693509198817,3.58290405,26301.0,26300.0,0.06949603]
[1693509199022,1.91194405,26301.0,26300.0,0.06949603]
[1693509199230,1.91194405,26301.0,26300.0,0.020301]
[1693509199231,1.60869639,26301.0,26300.0,0.020301]
[1693509199433,4.20997639,26301.0,26300.0,0.020301]
[1693509199715,3.59214989,26301.0,26300.0,0.020301]
[1693509199898,4.02684989,26301.0,26300.0,0.020301]
[1693509200101,4.09310989,26301.0,26300.0,1e-06]
[1693509200305,4.11860989,26301.0,26300.0,1e-06]
[1693509200515,4.11860989,26301.0,26295.0,0.06933771]
[1693509200516,0.5587,26296.0,26295.0,0.06933771]
[1693509200742,0.5587,26296.0,26279.0,0.08]
[1693509200743,0.04,26285.0,26279.0,0.08]
[1693509200949,0.1,26289.0,26281.0,0.08]
[1693509200950,0.51475319,26284.0,26281.0,0.08]
[1693509201152,0.51475319,26284.0,26283.0,0.1954]
[1693509201357,0.14707234,26284.0,26283.0,0.1154]
[1693509201564,0.14707234,26284.0,26283.0,0.1004]
[1693509201764,0.36768085,26284.0,26283.0,0.31946]
[1693509202175,0.36768085,26284.0,26282.0,0.1154]
[1693509202385,0.36768085,26283.0,26280.0,0.08]
[1693509202584,0.36768085,26283.0,26281.0,0.1546]
[1693509202797,0.51475319,26282.0,26279.0,0.805397]
[1693509203010,0.02,26279.0,26268.0,0.01119739]
[1693509203221,0.14707234,26281.0,26266.0,0.0153248]
[1693509203222,0.16,26267.0,26266.0,0.0153248]
[1693509203651,0.04,26260.0,26255.0,0.1546]
[1693509203855,0.571231,26260.0,26257.0,0.08]
[1693509204063,0.571042,26268.0,26262.0,0.08]
[1693509204270,0.66086551,26272.0,26265.0,0.1546]
[1693509204271,0.610968,26272.0,26265.0,0.1546]
[1693509204534,0.04,26264.0,26260.0,0.48024423]
[1693509204740,0.16,26245.0,26244.0,0.01126402]
[1693509204936,0.16,26245.0,26227.0,0.10068]
[1693509204937,0.16,26234.0,26220.0,0.572075]
[1693509205157,0.16,26234.0,26214.0,0.07176]
[1693509205158,0.06,26221.0,26214.0,1.47242285]
[1693509205398,0.06,26219.0,26214.0,1.02503307]
[1693509205597,0.55841085,26215.0,26211.0,0.08]
[1693509205879,0.36768085,26204.0,26200.0,0.0015]
[1693509206102,0.08,26212.0,26200.0,0.0015]
[1693509206103,0.152771,26219.0,26218.0,0.08]
[1693509206315,0.23312,26228.0,26217.0,0.02]
[1693509206316,0.57199,26225.0,26221.0,0.08]
[1693509206516,0.2146,26228.0,26218.0,0.22707234]
[1693509206717,0.36768085,26222.0,26221.0,0.08]
[1693509206925,0.06936,26231.0,26228.0,0.08]
[1693509207129,0.1946,26235.0,26228.0,0.08]
[1693509207130,0.04,26234.0,26228.0,0.08]
[1693509207355,0.571805,26233.0,26228.0,0.08]
[1693509207596,0.36768085,26230.0,26229.0,0.14707234]
[1693509207804,0.04,26233.0,26226.0,0.611932]
[1693509208047,0.04,26231.0,26224.0,0.651994]
[1693509208257,0.04,26221.0,26215.0,0.11895539]
[1693509208490,0.02,26222.0,26207.0,0.54736576]
[1693509208491,0.06,26208.0,26207.0,0.54736576]
[1693509208698,0.06,26208.0,26206.0,0.60137672]
[1693509208699,0.16,26207.0,26206.0,0.60137672]
[1693509208913,1.21379556,26207.0,26206.0,0.60137672]
[1693509209114,0.42768085,26207.0,26206.0,0.60137672]
[1693509209342,0.42768085,26207.0,26206.0,0.59637672]
[1693509209547,1.90004685,26207.0,26206.0,0.59637672]
[1693509209787,1.36364585,26207.0,26206.0,0.62988481]
[1693509210011,0.52048985,26207.0,26206.0,0.62988481]
[1693509210231,0.52048985,26207.0,26206.0,0.74344906]
[1693509210232,0.36768085,26207.0,26206.0,0.74344906]
[1693509210456,0.04982396,26212.0,26206.0,0.74344906]
[1693509210457,0.36768085,26211.0,26209.0,0.08]
[1693509210698,0.36768085,26211.0,26210.0,0.14707234]
[1693509210948,0.572102,26220.0,26213.0,0.08]
[1693509211156,0.04954766,26215.0,26214.0,0.14707234]
[1693509211414,0.04954766,26215.0,26207.0,0.09926728]
[1693509211415,0.04,26211.0,26207.0,0.09926728]
[1693509211619,0.04,26211.0,26204.0,0.0188]
[1693509211620,0.612305,26210.0,26204.0,0.0188]
[1693509211838,0.36768085,26207.0,26204.0,0.0188]
[1693509212296,1.17475319,26207.0,26206.0,0.37576821]
[1693509212484,3.05318519,26207.0,26206.0,0.37576821]
[1693509212711,0.16,26201.0,26200.0,0.0130213]
[1693509212920,2.71224419,26201.0,26200.0,0.0130213]
[1693509213141,3.02364419,26201.0,26200.0,0.0130213]
[1693509213349,3.02364419,26201.0,26191.0,2.0]
[1693509213350,1.56,26192.0,26191.0,2.0]
[1693509213583,3.50423219,26192.0,26191.0,1.72315449]
[1693509213821,2.06,26178.0,26168.0,0.1]
[1693509214061,2.06,26178.0,26153.0,0.0021035]
[1693509214062,2.06,26158.0,26157.0,0.0037]
[1693509214275,2.06,26158.0,26144.0,0.00040741]
[1693509214276,2.485073,26158.0,26144.0,0.00040741]
[1693509214482,0.3987,26143.0,26131.0,0.00545455]
[1693509214705,0.3,26157.0,26123.0,0.1]
[1693509214706,0.06,26135.0,26123.0,0.1]
[1693509214935,0.9,26130.0,26123.0,0.11134353]
[1693509215173,0.573932,26136.0,26127.0,0.08]
[1693509215400,0.04955251,26135.0,26128.0,0.24707234]
[1693509215608,0.1,26155.0,26130.0,0.00382]
[1693509215819,0.56,26157.0,26141.0,0.08]
[1693509216035,0.04,26157.0,26145.0,1.721133]
[1693509216294,0.21611383,26137.0,26128.0,0.2354304]
[1693509216506,0.21611383,26137.0,26121.0,0.0221035]
[1693509216507,0.02,26128.0,26127.0,0.0188]
[1693509216719,0.68,26122.0,26121.0,0.0021035]
[1693509216943,3.08,26117.0,26116.0,1.11042632]
[1693509217157,3.08,26117.0,26100.0,0.361]
[1693509217158,1.48,26102.0,26101.0,0.04075627]
[1693509217362,0.574668,26102.0,26101.0,0.04075627]
[1693509217576,0.82,26102.0,26101.0,0.04075627]
[1693509217790,0.92,26102.0,26101.0,0.04075627]
[1693509218003,0.92,26102.0,26101.0,0.24833161]
[1693509218004,0.02,26102.0,26101.0,0.24833161]
[1693509218220,0.9,26134.0,26132.0,0.02]
[1693509218486,0.5,26149.0,26134.0,0.02]
[1693509218487,0.06,26145.0,26134.0,0.02]
[1693509218769,0.06,26145.0,26125.0,0.02]
[1693509218770,0.5,26129.0,26125.0,0.574161]
[1693509218986,1.70717775,26144.0,26139.0,0.02]
[1693509219200,1.70717775,26144.0,26131.0,0.02]
[1693509219201,0.5,26139.0,26134.0,0.02]
[1693509219414,1.15343175,26144.0,26134.0,0.02]
[1693509219415,1.63343175,26144.0,26134.0,0.02]
[1693509219631,1.63343175,26144.0,26138.0,0.02]
[1693509219842,0.5,26142.0,26141.0,0.02]
[1693509220063,0.0702,26150.0,26149.0,0.02]
[1693509220305,0.0702,26150.0,26144.0,0.02]
[1693509220306,0.06,26149.0,26144.0,0.02]
[1693509220526,0.02,26154.0,26153.0,0.015]
[1693509220527,0.06,26154.0,26153.0,0.015]
[1693509220739,0.06,26161.0,26156.0,0.02]